bitfinex/quotes_ETHUSD_20250715
["timestamp","ask_amount","ask_price","bid_price","bid_amount"]
[1752547158553,8.75345752,2974.9,2974.8,0.168]
[1752547158748,5.8332,2974.9,2974.5,0.168]
[1752547158952,3.36189191,2974.6,2974.3,0.168]
[1752547159218,3.52957541,2974.8,2974.3,0.168]
[1752547159452,8.75376247,2974.7,2974.3,0.168]
[1752547159762,3.36202259,2974.4,2974.3,0.168]
[1752547160095,8.75402259,2974.4,2974.3,0.168]
[1752547160301,5.392,2974.4,2974.3,0.168]
[1752547160469,9.19522259,2974.4,2974.3,0.168]
[1752547161069,5.8332,2974.4,2974.3,0.168]
[1752547161267,9.19522259,2974.4,2974.3,0.168]
[1752547161593,5.8332,2974.4,2974.3,0.168]
[1752547161789,3.36220049,2974.3,2974.0,0.17]
[1752547162096,9.19527009,2974.4,2974.0,0.17]
[1752547162265,5.391,2974.3,2974.0,0.95645839]
[1752547162792,5.391,2974.3,2974.0,0.52345839]
[1752547163015,3.36236172,2974.1,2974.0,0.002]
[1752547164178,3.80356172,2974.1,2974.0,0.002]
[1752547164377,8.75336172,2974.1,2974.0,0.002]
[1752547164711,9.19456172,2974.1,2974.0,0.002]
[1752547164917,5.391,2974.1,2974.0,0.002]
[1752547165098,8.75336172,2974.1,2974.0,0.31625178]
[1752547165303,5.391,2974.1,2974.0,0.31625178]
[1752547165618,5.391,2974.1,2974.0,0.48425178]
[1752547165794,5.391,2974.1,2974.0,0.31625178]
[1752547165997,3.36236172,2974.1,2974.0,0.31625178]
[1752547166183,8.75236172,2974.1,2974.0,0.31614488]
[1752547166733,5.8312,2974.1,2974.0,0.31614488]
[1752547166877,5.558,2974.1,2974.0,0.31614488]
[1752547167074,0.168,2974.1,2974.0,0.31614488]
[1752547167280,5.558,2974.1,2974.0,0.31614488]
[1752547167492,0.168,2974.1,2974.0,0.31614488]
[1752547167894,5.39,2974.1,2974.0,4.27961966]
[1752547168219,5.39,2974.1,2974.0,5.04402482]
[1752547169380,5.39,2974.1,2974.0,1.24857474]
[1752547169780,5.39,2974.1,2974.0,4.61104952]
[1752547170018,5.39,2974.1,2974.0,5.04404952]
[1752547170528,5.39,2974.1,2974.0,1.24857474]
[1752547170733,5.39,2974.1,2974.0,3.84661966]
[1752547171045,5.39,2974.1,2974.0,0.48414488]
[1752547171198,6.144,2974.1,2974.0,0.31614488]
[1752547171893,9.50636172,2974.1,2974.0,0.31614488]
[1752547172201,9.94756172,2974.1,2974.0,0.31592104]
[1752547172402,10.95911789,2974.1,2974.0,0.31592104]
[1752547173296,30.75546611,2974.1,2974.0,0.31592104]
[1752547174654,30.75346611,2974.1,2974.0,0.31592104]
[1752547174957,30.75346611,2974.1,2974.0,0.31592107]
[1752547175120,30.75346611,2974.1,2974.0,0.31592096]
[1752547175503,25.36546611,2974.1,2974.0,0.31592096]
[1752547175703,30.75246611,2974.1,2974.0,0.31582195]
[1752547175912,25.36546611,2974.1,2974.0,0.31582195]
[1752547176136,20.99481789,2974.1,2974.0,0.31582195]
[1752547176333,30.75346611,2974.1,2974.0,0.31582195]
[1752547176841,30.75346611,2974.1,2973.9,0.002]
[1752547176842,14.70967478,2974.0,2973.9,1e-08]
[1752547177163,14.70967478,2974.0,2972.9,0.002]
[1752547177164,4.18680578,2973.0,2972.9,0.002]
[1752547177360,9.57380578,2973.0,2972.9,0.002]
[1752547177641,20.18300578,2973.0,2972.9,0.002]
[1752547177815,21.19456195,2973.0,2972.9,0.002]
[1752547181948,15.36636195,2973.0,2972.9,0.002]
[1752547182243,21.18486195,2973.0,2972.9,0.002]
[1752547182547,15.36636195,2973.0,2972.9,0.002]
[1752547182747,20.75236195,2973.0,2972.9,0.002]
[1752547183145,1.17955617,2973.0,2972.9,0.002]
[1752547183346,0.168,2973.0,2972.9,0.002]
[1752547183650,0.168,2973.0,2972.9,0.4317]
[1752547183949,0.168,2973.0,2972.9,3.79541892]
[1752547184149,1.42104717,2973.6,2973.3,3.36324756]
[1752547184322,5.386,2973.5,2973.3,0.4297]
[1752547184847,9.44660351,2973.5,2972.9,8.89789676]
[1752547185063,5.554,2973.5,2973.1,3.36342796]
[1752547185247,5.554,2973.5,2973.0,3.53153409]
[1752547185411,5.554,2973.5,2973.1,0.4297]
[1752547185612,8.91704812,2973.5,2973.1,0.4297]
[1752547185813,3.53104812,2973.5,2973.1,0.4297]
[1752547186162,5.386,2973.4,2973.1,0.4297]
[1752547186325,5.386,2973.4,2973.0,0.168]
[1752547186656,3.36338708,2973.2,2972.9,4.76199999]
[1752547186865,5.385,2973.1,2972.9,4.76199999]
[1752547187018,5.385,2973.1,2972.9,5.19169999]
[1752547187537,3.36360578,2973.0,2972.9,4.76199999]
[1752547187740,8.74853351,2973.1,2972.9,0.002]
[1752547187948,5.385,2973.1,2972.9,0.002]
[1752547188158,0.168,2973.2,2972.9,0.4317]
[1752547188314,5.385,2973.0,2972.9,0.4317]
[1752547188513,8.74860578,2973.0,2972.9,0.002]
[1752547188833,10.13900578,2973.0,2972.9,0.31505589]
[1752547189030,20.13900578,2973.0,2972.9,0.002]
[1752547189570,20.68900578,2973.0,2972.9,1e-08]
[1752547190142,3.36383207,2972.8,2972.7,1e-08]
[1752547190359,18.19773207,2972.8,2972.7,1e-08]
[1752547190556,18.63023207,2972.8,2972.7,1e-08]
[1752547192155,12.69623207,2972.8,2972.7,1e-08]
[1752547192473,18.08023207,2972.8,2972.7,1e-08]
[1752547193084,12.26373207,2972.8,2972.7,1e-08]
[1752547193272,17.64773207,2972.8,2972.7,1e-08]
[1752547193458,18.08023207,2972.8,2972.7,1e-08]
[1752547193975,18.8999,2972.8,2972.7,1e-08]
[1752547194130,13.622,2972.8,2972.7,1e-08]
[1752547194952,16.98583207,2972.8,2972.7,1e-08]
[1752547196493,18.18423207,2972.8,2972.7,1e-08]
[1752547196790,28.18423207,2972.8,2972.7,1e-08]
[1752547198464,22.80123207,2972.8,2972.7,1e-08]
[1752547198665,27.75073207,2972.8,2972.7,1e-08]
[1752547198872,22.36873207,2972.8,2972.7,1e-08]
[1752547199261,27.75073207,2972.8,2972.7,1e-08]
[1752547200714,8.239,2972.8,2972.7,1e-08]
[1752547200890,13.62,2972.8,2972.7,0.42970001]
[1752547201973,8.239,2972.8,2972.7,0.42970001]
[1752547202315,13.452,2972.8,2972.7,0.80928137]
[1752547202604,13.452,2972.8,2972.7,0.42970001]
[1752547202994,8.071,2972.8,2972.7,0.42970001]
[1752547203187,13.451,2972.8,2972.7,0.42970001]
[1752547204574,8.071,2972.8,2972.7,0.42970001]
[1752547204804,13.451,2972.8,2972.7,0.42970001]
[1752547207241,16.81483207,2972.8,2972.7,1e-08]
[1752547207443,16.98283207,2972.8,2972.7,1e-08]
[1752547208746,16.98283207,2972.8,2972.7,0.42970001]
[1752547208911,16.98283207,2972.8,2972.7,1e-08]
[1752547211246,17.45593207,2972.8,2972.7,1e-08]
[1752547211544,11.60283207,2972.8,2972.7,1e-08]
[1752547211711,16.97983207,2972.8,2972.7,1e-08]
[1752547213018,17.45293207,2972.8,2972.7,1e-08]
[1752547213517,27.45293207,2972.8,2972.7,1e-08]
[1752547213937,28.23353207,2972.8,2972.7,1e-08]
[1752547214445,27.75943207,2972.8,2972.7,1e-08]
[1752547214648,28.23253207,2972.8,2972.7,1e-08]
[1752547218943,28.78253207,2972.8,2972.7,1e-08]
[1752547221491,3.36496399,2971.8,2971.7,0.002]
[1752547221662,8.73796399,2971.8,2971.7,0.002]
[1752547224969,9.56836399,2971.8,2971.7,0.002]
[1752547225586,10.04146399,2971.8,2971.7,0.002]
[1752547226187,9.56836399,2971.8,2971.7,0.002]
[1752547227249,20.04146399,2971.8,2971.7,0.002]
[1752547227457,14.74679046,2971.6,2971.5,1e-08]
[1752547227782,20.11879046,2971.6,2971.5,1e-08]
[1752547227986,20.59189046,2971.6,2971.5,1e-08]
[1752547228210,14.19679046,2971.6,2971.5,1e-08]
[1752547228500,19.56779046,2971.6,2971.5,1e-08]
[1752547229204,20.04089046,2971.6,2971.5,1e-08]
[1752547229362,20.59089046,2971.6,2971.5,1e-08]
[1752547230722,3.36620998,2970.7,2970.6,0.002]
[1752547230910,18.73720998,2970.7,2970.6,0.002]
[1752547231077,19.76030998,2970.7,2970.6,1e-08]
[1752547231283,3.3672339,2969.8,2969.1,0.7979]
[1752547231483,16.8133435,2969.7,2969.1,0.7979]
[1752547231804,16.8133435,2969.7,2969.1,1.227]
[1752547232921,13.445,2969.7,2969.6,0.4311]
[1752547233223,13.445,2969.7,2969.6,0.002]
[1752547233522,16.8123435,2969.7,2969.6,0.002]
[1752547233691,17.6107435,2969.7,2969.6,0.002]
[1752547234621,18.0838435,2969.7,2969.6,0.002]
[1752547234826,28.0838435,2969.7,2969.6,0.002]
[1752547235451,24.2444,2969.7,2969.6,0.002]
[1752547235754,13.446,2969.7,2969.6,0.002]
[1752547237525,16.8133435,2969.7,2969.6,0.002]
[1752547237851,17.1239435,2969.7,2969.6,0.002]
[1752547238435,37.69379172,2969.7,2969.6,0.002]
[1752547240268,21.4423435,2969.7,2969.6,0.002]
[1752547240573,26.8123435,2969.7,2969.6,0.002]
[1752547242081,21.4423435,2969.7,2969.6,0.002]
[1752547242278,26.8123435,2969.7,2969.6,0.002]
[1752547242572,27.2615435,2969.7,2969.6,0.002]
[1752547242733,21.4423435,2969.7,2969.6,0.002]
[1752547242932,26.8113435,2969.7,2969.6,0.002]
[1752547244369,8.075,2969.7,2969.6,0.002]
[1752547244610,16.8123435,2969.7,2969.6,0.4625]
[1752547245071,16.8123435,2969.7,2969.6,0.002]
[1752547245470,16.8113435,2969.7,2969.6,0.002]
[1752547245984,16.8113435,2969.7,2969.6,0.4625]
[1752547246684,16.8113435,2969.7,2969.6,0.002]
[1752547249147,18.18823897,2969.7,2969.6,0.002]
[1752547249390,16.8113435,2969.7,2969.6,0.002]
[1752547251086,16.8093435,2969.7,2969.6,0.002]
[1752547252182,8.075,2969.7,2969.6,0.4625]
[1752547252363,13.442,2969.7,2969.6,0.4625]
[1752547252684,13.442,2969.7,2969.6,1.2679]
[1752547253252,8.075,2969.7,2969.6,1.2679]
[1752547253452,8.8618,2971.2,2970.4,0.7928]
[1752547253668,0.168,2970.7,2970.5,0.4605]
[1752547253894,5.366,2970.6,2970.4,0.7928]
[1752547254253,5.366,2970.6,2970.5,3.36643662]
[1752547254583,5.366,2970.6,2970.5,3.82693662]
[1752547254979,5.366,2970.6,2970.5,0.4605]
[1752547255595,3.36643662,2970.5,2970.4,0.7928]
[1752547255893,0.168,2970.5,2970.4,0.4605]
[1752547256188,3.36602579,2970.9,2970.4,0.4605]
[1752547256352,0.168,2970.7,2970.4,0.4605]
[1752547256552,5.365,2970.6,2970.5,4.17176063]
[1752547256771,5.365,2970.6,2970.5,4.63226063]
[1752547257175,8.081,2971.2,2971.0,0.7766]
[1752547257484,8.081,2971.2,2971.1,3.82625679]
[1752547257662,0.001,2971.4,2971.3,3.36553023]
[1752547257990,5.365,2971.4,2971.3,4.33893023]
[1752547258191,5.365,2971.4,2971.3,4.79943023]
[1752547258487,5.365,2971.4,2971.3,5.61593732]
[1752547258676,0.001,2971.4,2971.3,5.61593732]
[1752547258878,1e-08,2971.4,2971.3,16.19959262]
[1752547259075,1e-08,2971.4,2971.3,16.16593732]
[1752547260388,1e-08,2971.4,2971.3,11.2659]
[1752547260593,1e-08,2971.4,2971.3,14.63143023]
[1752547262188,1e-08,2971.4,2971.3,15.428312]
[1752547263198,1e-08,2971.4,2971.3,14.63143023]
[1752547263773,1e-08,2971.4,2971.3,15.18143023]
[1752547263986,1e-08,2971.4,2971.3,21.82086909]
[1752547264962,1e-08,2971.4,2971.3,17.0608691]
[1752547265562,1e-08,2971.4,2971.3,26.81951732]
[1752547265965,1e-08,2971.4,2971.3,32.17751732]
[1752547266411,1e-08,2971.4,2971.3,17.0608691]
[1752547266575,1e-08,2971.4,2971.3,14.63143023]
[1752547267469,1e-08,2971.4,2971.3,15.18143023]
[1752547268105,1e-08,2971.4,2971.3,30.29707845]
[1752547269721,1e-08,2971.4,2971.3,15.18143023]
[1752547270515,1e-08,2971.4,2971.3,20.70443023]
[1752547270722,1e-08,2971.4,2971.3,23.1361691]
[1752547271097,1e-08,2971.4,2971.3,27.89616909]
[1752547273692,1e-08,2971.4,2971.3,22.54116909]
[1752547273893,1e-08,2971.4,2971.3,27.89616909]
[1752547275129,1e-08,2971.4,2971.3,32.29981731]
[1752547275314,1e-08,2971.4,2971.3,37.65381731]
[1752547277922,0.001,2972.6,2972.5,3.36417157]
[1752547278122,0.001,2972.6,2972.5,3.39781328]
[1752547278346,0.001,2972.6,2972.5,3.56581328]
[1752547278820,0.001,2972.6,2972.5,3.53217157]
[1752547279021,0.001,2972.6,2972.5,0.168]
[1752547279222,0.001,2972.6,2972.4,4.75999998]
[1752547279463,0.4543,2972.6,2972.4,4.92799998]
[1752547279846,0.001,2972.6,2972.4,4.92799998]
[1752547280044,3.36417157,2972.5,2972.4,4.92799998]
[1752547280245,1.2808,2972.5,2972.4,4.92799998]
[1752547280466,0.8275,2972.5,2972.4,4.92799998]
[1752547280762,1.2808,2972.5,2972.4,4.92799998]
[1752547280922,4.64497157,2972.5,2972.4,4.92799998]
[1752547281123,2.08179695,2972.5,2971.4,6.61334207]
[1752547281320,4.19223755,2972.0,2971.9,0.168]
[1752547281561,0.9955,2972.0,2971.5,10.168]
[1752547281762,0.9955,2972.0,2971.6,3.36513439]
[1752547282132,0.9955,2972.0,2971.7,3.36496492]
[1752547282664,0.9955,2972.0,2971.7,3.36505022]
[1752547282827,0.8275,2972.3,2971.8,0.03364963]
[1752547283032,0.001,2972.6,2971.8,0.03364963]
[1752547283033,0.8285,2972.6,2971.9,0.4537]
[1752547283371,0.8285,2972.6,2972.2,3.53248473]
[1752547283866,0.8285,2972.6,2972.3,3.36438743]
[1752547284226,0.8285,2972.6,2972.4,3.36425461]
[1752547284428,0.001,2972.6,2972.5,3.36417157]
[1752547284859,0.001,2972.6,2972.4,3.36423016]
[1752547285259,0.001,2972.6,2972.3,0.168]
[1752547285559,0.001,2972.6,2972.5,3.36417157]
[1752547286128,0.001,2972.6,2972.5,5.38012891]
[1752547286327,0.001,2972.6,2972.5,4.75452891]
[1752547287848,0.001,2972.6,2972.5,4.7208872]
[1752547288023,0.001,2972.6,2972.5,10.0688872]
[1752547288433,0.001,2972.6,2972.5,20.0688872]
[1752547290445,0.001,2972.6,2972.5,20.6188872]
[1752547290650,0.001,2972.6,2972.5,21.4218872]
[1752547291775,0.001,2972.6,2972.5,26.18188718]
[1752547292289,1e-08,2972.8,2972.7,3.91394523]
[1752547292468,1e-08,2972.8,2972.7,28.25045062]
[1752547292679,1e-08,2972.8,2972.7,28.67051117]
[1752547293293,1e-08,2972.8,2972.7,28.66951117]
[1752547293580,1e-08,2972.8,2972.7,28.11951117]
[1752547294784,1e-08,2972.8,2972.7,22.77351117]
[1752547294982,1e-08,2972.8,2972.7,28.11851117]
[1752547295359,1e-08,2972.8,2972.7,28.37209438]
[1752547296858,1e-08,2972.8,2972.7,23.02709438]
[1752547297049,1e-08,2972.8,2972.7,28.37109438]
[1752547297648,1e-08,2972.8,2972.7,23.6110944]
[1752547301265,1e-08,2972.8,2972.7,18.2670944]
[1752547301476,1e-08,2972.8,2972.7,23.6090944]
[1752547301667,1e-08,2972.8,2972.7,24.1590944]
[1752547303658,1e-08,2972.8,2972.7,28.91909438]
[1752547307091,1e-08,2972.8,2972.7,23.57709438]
[1752547307295,1e-08,2972.8,2972.7,28.91709438]
[1752547309499,1e-08,2972.8,2972.7,28.93529438]
[1752547309860,0.45670001,2972.8,2972.7,27.13149438]
[1752547310058,0.45670001,2972.8,2972.7,0.168]
[1752547310256,0.45670001,2972.8,2972.5,0.002]
[1752547310257,1.25530001,2972.8,2972.5,0.002]
[1752547310457,0.4567,2972.7,2972.5,3.36611754]
[1752547310867,0.79860001,2972.8,2972.5,0.002]
[1752547311072,0.79860001,2972.8,2972.7,3.36394523]
[1752547311987,1e-08,2972.8,2972.7,4.08738452]
[1752547312299,1e-08,2972.8,2972.7,29.62993272]
[1752547312503,1e-08,2972.8,2972.7,29.59629327]
[1752547313355,1e-08,2972.8,2972.7,30.40169327]
[1752547315610,1e-08,2972.8,2972.7,20.64304505]
[1752547316177,1e-08,2972.8,2972.7,25.50514505]
[1752547316378,1e-08,2972.8,2972.7,19.36374505]
[1752547316581,1e-08,2972.8,2972.7,24.14974505]
[1752547317579,1e-08,2972.8,2972.7,18.81374505]
[1752547317781,1e-08,2972.8,2972.7,5.44979982]
[1752547317973,1.25570001,2972.8,2972.7,4.75999998]
[1752547319268,1.25570001,2972.8,2972.6,0.168]
[1752547319472,0.79900001,2972.8,2972.6,0.168]
[1752547319673,0.4567,2972.7,2972.6,0.168]
[1752547319905,0.4567,2972.7,2972.6,0.48284088]
[1752547320105,0.79900001,2972.8,2972.6,1.86774011]
[1752547320294,1e-08,2972.8,2972.7,3.67878611]
[1752547320721,1e-08,2972.8,2972.7,3.71242556]
[1752547320883,1e-08,2972.8,2972.7,14.18632556]
[1752547321098,1e-08,2972.8,2972.7,14.70268611]
[1752547321296,1e-08,2972.8,2972.7,17.27878993]
[1752547321497,0.7852,2973.6,2973.4,3.36305963]
[1752547321717,0.7852,2973.6,2973.5,3.67788106]
[1752547321895,0.7852,2973.6,2973.5,3.84588106]
[1752547322091,1.2419,2973.6,2973.5,0.48284088]
[1752547323222,1.2419,2973.6,2973.5,0.31484088]
[1752547323587,0.7852,2973.6,2973.5,3.67788106]
[1752547323786,0.7852,2973.6,2973.5,4.54999563]
[1752547324122,1.2419,2973.6,2973.5,1.18689265]
[1752547324298,1.2419,2973.6,2973.5,0.48277808]
[1752547324750,1.2419,2973.6,2973.5,0.48278812]
[1752547324938,0.7852,2973.6,2973.5,0.31478812]
[1752547325229,0.7881,2973.9,2973.5,0.95668812]
[1752547325523,0.7881,2973.9,2973.8,3.53070092]
[1752547325688,0.7881,2973.9,2973.8,3.84548904]
[1752547326798,0.001,2973.9,2973.8,4.56631905]
[1752547330654,0.001,2973.9,2973.8,1.20361813]
[1752547330937,0.001,2973.9,2973.8,0.48278812]
[1752547331937,3.83088784,2973.9,2973.8,0.31478812]
[1752547332137,4.65458784,2973.9,2973.8,0.31478812]
[1752547332945,4.65458784,2973.9,2973.8,0.31421473]
[1752547335848,3.362814,2973.7,2973.6,4.75999998]
[1752547336023,9.458814,2973.7,2973.6,5.0742635]
[1752547336212,9.926114,2973.7,2973.6,0.31426352]
[1752547339788,3.36394523,2972.7,2972.6,4.76199998]
[1752547340062,5.326,2972.7,2972.6,0.002]
[1752547340223,8.68994523,2972.7,2972.6,0.002]
[1752547340416,5.326,2972.7,2972.6,0.002]
[1752547341344,8.68994523,2972.7,2972.6,0.002]
[1752547341542,5.326,2972.7,2972.6,0.002]
[1752547341858,9.51644523,2972.7,2972.6,0.002]
[1752547342053,10.89945992,2972.7,2972.6,0.002]
[1752547344277,10.89945992,2972.7,2972.6,1e-08]
[1752547344418,0.8265,2972.7,2972.6,1e-08]
[1752547344781,5.325,2972.9,2972.6,1e-08]
[1752547345681,0.168,2973.0,2972.6,1e-08]
[1752547345899,5.325,2972.8,2972.6,3.36398675]
[1752547346051,5.325,2972.8,2972.6,1e-08]
[1752547346683,8.68891409,2972.8,2972.6,1e-08]
[1752547346888,4.58554523,2972.7,2972.6,1e-08]
[1752547347278,1.2216,2972.7,2972.6,1e-08]
[1752547347970,4.58554523,2972.7,2972.6,1e-08]
[1752547348272,1.2216,2972.7,2972.6,1e-08]
[1752547349185,4.58554523,2972.7,2972.6,1e-08]
[1752547349485,1.2216,2972.7,2972.6,1e-08]
[1752547349694,8.07,2973.2,2972.6,1e-08]
[1752547349899,0.9223,2973.1,2972.7,3.36389604]
[1752547350101,5.324,2973.0,2972.9,3.36371892]
[1752547350306,5.324,2973.0,2972.9,3.53171892]
[1752547351468,5.324,2973.0,2972.9,0.168]
[1752547351668,5.492,2973.0,2972.6,1e-08]
[1752547351907,5.492,2973.0,2972.6,3.3640549]
[1752547352121,0.8024,2973.9,2972.9,9.75864822]
[1752547352302,0.001,2973.9,2973.8,3.36270092]
[1752547352664,0.001,2973.9,2973.6,4.16830205]
[1752547352881,0.001,2973.9,2973.6,3.36290205]
[1752547353404,0.7717,2973.8,2973.5,10.0]
[1752547353600,1.239,2973.8,2973.5,10.0]
[1752547353904,0.7717,2973.8,2973.5,10.0]
[1752547354489,0.7717,2973.8,2973.4,10.0]
[1752547354925,0.7717,2973.8,2973.4,3.36314728]
[1752547355128,0.7717,2973.8,2973.6,3.36291779]
[1752547355292,5.324,2973.9,2973.6,3.36291779]
[1752547355621,5.324,2973.9,2973.7,3.36280235]
[1752547356491,5.324,2973.9,2973.6,3.36289372]
[1752547357025,5.324,2973.9,2973.5,3.36299316]
[1752547357443,8.68663063,2973.9,2973.4,3.80183251]
[1752547357651,5.324,2973.9,2973.5,3.36301011]
[1752547358349,5.324,2973.9,2973.6,3.3629152]
[1752547358546,5.324,2973.9,2973.5,3.36299885]
[1752547358755,0.762,2973.6,2972.7,0.24624222]
[1752547358921,3.36315329,2973.4,2972.7,0.24624222]
[1752547359128,5.7873,2973.5,2972.8,3.36373586]
[1752547359352,3.36323392,2973.4,2972.8,3.36373586]
[1752547359506,3.3632664,2973.3,2972.7,3.80258818]
[1752547359712,5.32,2973.2,2972.7,0.4387]
[1752547360034,5.32,2973.2,2972.9,3.36370164]
[1752547360236,0.65493,2973.5,2973.1,3.36345887]
[1752547360411,0.762,2973.6,2973.1,3.80210454]
[1752547360612,5.319,2973.5,2973.2,3.80200006]
[1752547361145,5.319,2973.5,2973.3,3.36323423]
[1752547362111,5.319,2973.5,2973.3,3.53123423]
[1752547362957,5.319,2973.5,2973.4,3.36315329]
[1752547363162,5.318,2973.6,2973.3,0.6292]
[1752547363464,5.318,2973.8,2973.5,3.36304018]
[1752547363671,0.001,2973.9,2973.6,3.36292709]
[1752547363833,0.001,2973.9,2973.5,0.4612]
[1752547363834,5.319,2973.9,2973.7,3.36275417]
[1752547364155,5.319,2973.9,2973.6,0.168]
[1752547364546,0.001,2973.9,2973.8,3.36270092]
[1752547364746,0.001,2973.9,2973.8,4.55937241]
[1752547364966,0.001,2973.9,2973.8,4.76099941]
[1752547365481,0.001,2973.9,2973.8,19.52099939]
[1752547365787,0.001,2973.9,2973.8,26.10697239]
[1752547367943,0.001,2973.9,2973.8,26.28001237]
[1752547369161,0.001,2973.9,2973.8,26.10697239]
[1752547369688,0.001,2974.7,2973.9,10.55]
[1752547369893,0.001,2974.7,2974.6,4.16719654]
[1752547370095,0.001,2974.7,2974.6,14.44481448]
[1752547370306,0.001,2974.7,2974.6,14.87239652]
[1752547370995,0.001,2974.7,2974.6,10.24399998]
[1752547371202,0.001,2974.7,2974.6,10.24299998]
[1752547371361,0.001,2974.7,2974.6,13.60479652]
[1752547371561,0.001,2974.7,2974.6,8.28979652]
[1752547372213,0.001,2974.7,2974.6,4.92799998]
[1752547374520,0.001,2974.7,2974.6,0.168]
[1752547374881,0.001,2974.7,2974.6,3.99099654]
[1752547375098,0.001,2974.7,2974.6,4.88067239]
[1752547375301,0.001,2974.7,2974.6,10.19367239]
[1752547376419,0.001,2974.7,2974.6,25.98274648]
[1752547377283,0.001,2974.7,2974.6,26.53274648]
[1752547377998,1e-08,2974.7,2974.6,26.53274648]
[1752547378984,1e-08,2974.7,2974.6,26.53174648]
[1752547379787,1e-08,2974.7,2974.6,21.21974648]
[1752547380205,1e-08,2974.7,2974.6,26.53074648]
[1752547380439,1e-08,2974.7,2974.6,26.84346017]
[1752547381015,1e-08,2974.7,2974.6,20.98246017]
[1752547381241,1e-08,2974.7,2974.6,18.85408432]
[1752547381425,1e-08,2974.7,2974.6,24.16408432]
[1752547381644,1e-08,2974.7,2974.6,24.16419406]
[1752547381821,1e-08,2974.7,2974.6,5.24082341]
[1752547382004,1e-08,2974.7,2974.6,10.55082341]
[1752547382204,1e-08,2974.7,2974.6,5.24082341]
[1752547382436,1e-08,2974.7,2974.6,10.54982341]
[1752547382820,1e-08,2974.7,2974.6,20.54982341]
[1752547383406,1e-08,2974.7,2974.6,23.91161995]
[1752547384344,1e-08,2974.7,2974.6,27.9055722]
[1752547384530,1e-08,2974.7,2974.6,28.45539616]
[1752547385720,1e-08,2974.7,2974.6,28.45534664]
[1752547386350,1e-08,2974.7,2974.6,23.69534666]
[1752547388650,1e-08,2974.7,2974.6,23.23214666]
[1752547388809,1e-08,2974.7,2974.6,23.69334666]
[1752547389551,1e-08,2974.7,2974.6,21.70874666]
[1752547390543,1e-08,2974.7,2974.6,21.70907776]
[1752547390961,1e-08,2974.7,2974.6,22.14537776]
[1752547391915,1e-08,2974.7,2974.6,21.70907776]
[1752547392245,1e-08,2974.7,2974.6,22.14537776]
[1752547392450,1e-08,2974.7,2974.6,23.48847776]
[1752547393222,1e-08,2974.7,2974.6,23.17354879]
[1752547393458,1e-08,2974.7,2974.6,23.48710835]
[1752547394040,1e-08,2974.7,2974.6,16.40270835]
[1752547394224,1e-08,2974.7,2974.6,22.14400835]
[1752547395183,1e-08,2974.7,2974.6,21.83044879]
[1752547395589,1e-08,2974.7,2974.6,22.38044879]
[1752547396148,1e-08,2974.7,2974.6,23.18584879]
[1752547396559,0.001,2975.1,2975.0,14.71674453]
[1752547396759,0.001,2975.1,2975.0,22.16472092]
[1752547396974,1e-08,2975.1,2975.0,22.16472092]
[1752547397148,1e-08,2975.1,2975.0,22.60102092]
[1752547399085,1e-08,2975.1,2975.0,16.31072092]
[1752547399382,1e-08,2975.1,2975.0,22.05002092]
[1752547399584,1e-08,2975.1,2975.0,22.21802092]
[1752547400249,1e-08,2975.1,2975.0,22.76802092]
[1752547401693,1e-08,2975.1,2975.0,17.46502092]
[1752547401998,1e-08,2975.1,2975.0,22.76702092]
[1752547402852,1e-08,2975.1,2975.0,17.46502092]
[1752547403088,1e-08,2975.1,2975.0,22.76602092]
[1752547403878,1e-08,2975.1,2975.0,17.46502092]
[1752547404085,1e-08,2975.1,2975.0,22.76602092]
[1752547404487,1e-08,2975.1,2975.0,17.02872092]
[1752547404765,1e-08,2975.1,2975.0,18.83034453]
[1752547405376,1e-08,2975.1,2975.0,10.168]
[1752547405703,0.46600001,2975.1,2975.0,15.468]
[1752547406072,1.29060001,2975.1,2975.0,15.468]
[1752547406903,1.29060001,2975.1,2975.0,10.168]
[1752547407402,1.29060001,2975.1,2975.0,18.82934453]
[1752547407403,1e-08,2975.1,2975.0,18.82934453]
[1752547407563,1e-08,2975.1,2975.0,21.09205389]
[1752547408001,1e-08,2975.1,2975.0,21.40642207]
[1752547408393,1e-08,2975.1,2975.0,16.10642207]
[1752547408592,0.75630001,2975.1,2975.0,19.14271271]
[1752547408907,1.22230001,2975.1,2975.0,19.14271271]
[1752547409269,1e-08,2975.1,2975.0,19.14271271]
[1752547409964,1e-08,2975.1,2975.0,19.57901271]
[1752547410306,1e-08,2975.1,2975.0,10.48236818]
[1752547410505,1.22120001,2975.1,2975.0,0.31436818]
[1752547410871,1.22120001,2975.1,2974.9,10.0]
[1752547411207,0.466,2975.0,2974.9,10.0]
[1752547411619,0.75520001,2975.1,2974.9,10.0]
[1752547411789,0.75520001,2975.1,2974.9,13.36140226]
[1752547411983,0.75520001,2975.1,2975.0,3.36134453]
[1752547412291,0.75520001,2975.1,2975.0,0.168]
[1752547412492,1.22120001,2975.1,2975.0,0.168]
[1752547412799,1.22120001,2975.1,2974.9,10.0]
[1752547412984,0.466,2975.0,2974.9,10.0]
[1752547413338,0.466,2975.0,2974.8,10.0]
[1752547413498,0.466,2974.9,2974.7,0.168]
[1752547413678,0.75520001,2975.1,2974.8,10.0]
[1752547413885,0.75520001,2975.1,2974.7,10.168]
[1752547414110,0.75520001,2975.1,2974.8,3.36154223]
[1752547414319,0.75520001,2975.1,2974.9,3.36143207]
[1752547414520,1.22120001,2975.1,2974.9,3.36143207]
[1752547415090,1.22120001,2975.1,2974.8,3.36151972]
[1752547415411,1.22120001,2975.1,2975.0,3.36134453]
[1752547415584,1e-08,2975.1,2975.0,3.36134453]
[1752547415792,1e-08,2975.1,2975.0,8.82634453]
[1752547416108,1e-08,2975.1,2975.0,5.465]